bitfinex-derivatives/quotes_BTCF0:USTF0_20260113
["timestamp","ask_amount","ask_price","bid_price","bid_amount"]
[1768328823974,0.17906825,93705.0,93686.0,0.02868342]
[1768328824180,0.09612,93709.0,93689.0,0.18972338]
[1768328824376,0.010677,93700.0,93689.0,0.14238404]
[1768328824578,0.09612,93702.0,93689.0,0.14238404]
[1768328824770,0.09612,93702.0,93690.0,0.09318783]
[1768328824979,0.010676,93709.0,93695.0,0.19919902]
[1768328825282,0.010676,93707.0,93696.0,0.18852102]
[1768328825483,0.010676,93707.0,93696.0,0.05]
[1768328826183,0.00016014,93710.0,93696.0,0.05]
[1768328826582,0.010677,93703.0,93696.0,0.05]
[1768328826885,0.010677,93704.0,93696.0,0.05]
[1768328827187,0.010676,93708.0,93696.0,1e-06]
[1768328827483,0.00016014,93710.0,93696.0,1e-06]
[1768328827795,0.00016014,93710.0,93696.0,0.05]
[1768328828481,0.00016014,93710.0,93699.0,0.010677]
[1768328828683,0.00016014,93710.0,93699.0,0.05]
[1768328829073,0.010676,93707.0,93699.0,0.05]
[1768328829275,0.010676,93708.0,93699.0,0.05]
[1768328829476,0.010677,93704.0,93699.0,0.05]
[1768328829672,0.010677,93699.0,93691.0,0.09533319]
[1768328829877,0.010677,93702.0,93691.0,0.11533319]
[1768328831380,0.00016014,93710.0,93691.0,0.11533319]
[1768328831776,0.010677,93703.0,93691.0,0.11533319]
[1768328832183,0.010677,93703.0,93691.0,0.20852102]
[1768328832787,0.010677,93706.0,93692.0,0.18852102]
[1768328832992,0.010677,93706.0,93692.0,0.24852102]
[1768328833189,0.010676,93709.0,93693.0,0.09318783]
[1768328833491,0.010676,93709.0,93693.0,0.15318783]
[1768328833677,0.00016014,93710.0,93694.0,0.18852102]
[1768328833883,0.00016014,93710.0,93699.0,0.18852102]
[1768328834092,0.00016014,93710.0,93699.0,0.24852102]
[1768328834700,0.00016014,93710.0,93700.0,0.09318783]
[1768328834993,0.00016014,93710.0,93700.0,0.06]
[1768328835482,0.00016014,93710.0,93700.0,0.053]
[1768328835987,0.00016014,93710.0,93700.0,0.063677]
[1768328836193,0.00016014,93710.0,93702.0,0.010677]
[1768328836384,0.00016014,93710.0,93702.0,0.060677]
[1768328838390,0.00016014,93710.0,93702.0,0.05]
[1768328840592,0.00016014,93710.0,93702.0,0.02]
[1768328842992,0.00016014,93710.0,93702.0,0.008]
[1768328847402,0.010676,93709.0,93702.0,0.008]
[1768328847899,0.010676,93707.0,93702.0,0.05]
[1768328848108,0.010676,93707.0,93697.0,0.00016014]
[1768328848307,0.010676,93707.0,93697.0,0.06016014]
[1768328848806,0.01083614,93710.0,93697.0,0.06016014]
[1768328849704,0.00016014,93710.0,93697.0,0.06016014]
[1768328849908,0.00016014,93710.0,93702.0,0.010677]
[1768328850209,0.198,93723.0,93708.0,0.09384956]
[1768328850210,0.010675,93719.0,93708.0,0.09384956]
[1768328850403,0.09612,93718.0,93708.0,0.19023302]
[1768328850909,0.010675,93717.0,93708.0,0.18723302]
[1768328852706,0.09612,93718.0,93698.0,0.09638346]
[1768328852906,0.09612,93718.0,93700.0,0.09638346]
[1768328853112,0.09612,93718.0,93700.0,0.25023302]
[1768328853312,0.010676,93707.0,93701.0,4.6e-07]
[1768328853506,0.010676,93707.0,93701.0,0.06]
[1768328854312,0.010677,93700.0,93691.0,0.09384956]
[1768328854507,0.010677,93706.0,93691.0,0.15384956]
[1768328854811,0.010677,93704.0,93692.0,0.09384956]
[1768328855117,0.010677,93704.0,93693.0,0.09123399]
[1768328855315,0.010677,93704.0,93693.0,0.06]
[1768328855614,0.010678,93695.0,93680.0,0.010679]
[1768328855912,0.010678,93695.0,93680.0,0.060679]
[1768328856512,0.010678,93695.0,93682.0,0.010679]
[1768328856702,0.010678,93698.0,93682.0,0.05]
[1768328857211,0.010677,93701.0,93682.0,0.05]
[1768328857414,0.010677,93700.0,93685.0,0.010679]
[1768328857615,0.010677,93700.0,93686.0,0.09123399]
[1768328857798,0.09612,93707.0,93686.0,0.09123399]
[1768328857799,0.09612,93707.0,93691.0,0.18211555]
[1768328858104,0.010677,93704.0,93692.0,0.09123399]
[1768328858303,0.010677,93704.0,93692.0,0.11123399]
[1768328858524,0.010677,93704.0,93692.0,0.09223399]
[1768328858706,0.010675,93720.0,93692.0,0.09223399]
[1768328858707,0.09152576,93719.0,93693.0,0.09088156]
[1768328859013,0.09612,93712.0,93694.0,0.09088156]
[1768328859213,0.010676,93711.0,93699.0,0.010677]
[1768328859410,0.09487006,93720.0,93704.0,0.09088156]
[1768328859599,0.010676,93712.0,93704.0,0.06]
[1768328860416,0.09612,93718.0,93704.0,0.06]
[1768328861415,0.010676,93711.0,93704.0,0.06]
[1768328862416,0.010676,93709.0,93704.0,0.06]
[1768328863706,0.09152576,93709.0,93686.0,0.09123399]
[1768328863906,0.010678,93696.0,93689.0,0.03]
[1768328864102,0.010678,93694.0,93689.0,0.03]
[1768328864414,0.28126588,93700.0,93681.0,0.09123399]
[1768328864615,0.010678,93690.0,93681.0,0.06]
[1768328864916,0.010678,93690.0,93673.0,0.00533772]
[1768328864917,0.09152576,93690.0,93673.0,0.00533772]
[1768328865110,0.09487006,93683.0,93673.0,0.02533772]
[1768328865908,0.09152576,93692.0,93673.0,0.11657171]
[1768328866109,0.18639582,93690.0,93673.0,0.02533772]
[1768328866420,0.010679,93688.0,93673.0,0.15123399]
[1768328866826,0.010679,93686.0,93673.0,0.15123399]
[1768328867120,0.09487006,93683.0,93673.0,0.15123399]
[1768328869019,0.010679,93682.0,93673.0,0.15123399]
[1768328869222,0.09487006,93683.0,93673.0,0.15123399]
[1768328869522,0.01068,93679.0,93673.0,0.06]
[1768328869723,0.18560366,93681.0,93659.0,0.09123399]
[1768328870018,0.09487006,93671.0,93660.0,0.09612]
[1768328870224,0.01068,93674.0,93661.0,0.09123399]
[1768328870423,0.09487006,93671.0,93661.0,0.14123399]
[1768328871927,0.09487006,93671.0,93661.0,0.05]
[1768328872930,0.09487006,93671.0,93653.0,0.19269285]
[1768328873121,0.09487006,93671.0,93653.0,0.58269285]
[1768328873625,0.18974012,93663.0,93644.0,1.00368156]
[1768328873926,0.09487006,93654.0,93644.0,0.02]
[1768328874224,0.09487006,93654.0,93644.0,0.05]
[1768328875011,0.00016014,93658.0,93645.0,0.09123399]
[1768328875210,0.10555206,93655.0,93645.0,0.05]
[1768328875530,0.010683,93646.0,93632.0,0.09616]
[1768328875730,0.09487006,93642.0,93632.0,0.14616]
[1768328876326,0.09487006,93642.0,93632.0,0.05]
[1768328877621,0.09487006,93642.0,93632.0,0.060685]
[1768328877818,0.010683,93650.0,93633.0,0.09123399]
[1768328878027,0.10555306,93650.0,93633.0,0.05]
[1768328878232,0.09487006,93643.0,93633.0,0.05]
[1768328880136,0.18560366,93640.0,93625.0,0.09616]
[1768328880317,0.18639582,93635.0,93625.0,0.03]
[1768328880523,0.09487006,93640.0,93625.0,0.03]
[1768328881427,0.010684,93637.0,93625.0,0.03]
[1768328881633,0.09487006,93635.0,93625.0,0.03]
[1768328881831,0.09487006,93635.0,93625.0,0.013]
[1768328882432,0.09487006,93640.0,93627.0,0.09123399]
[1768328882632,0.09616,93639.0,93627.0,0.15123399]
[1768328883436,0.09616,93639.0,93627.0,0.06]
[1768328883631,0.09616,93639.0,93628.0,0.010685]
[1768328883832,0.19103006,93640.0,93631.0,0.09123399]
[1768328884030,0.19103006,93640.0,93631.0,0.06]
[1768328884729,0.09616,93640.0,93631.0,0.06]
[1768328886537,0.010684,93639.0,93623.0,0.010686]
[1768328886732,0.09487006,93633.0,93623.0,0.06]
[1768328888828,0.00016014,93637.0,93624.0,0.010686]
[1768328889027,0.00016014,93637.0,93624.0,0.06]
[1768328889331,0.00016014,93637.0,93626.0,0.010686]
[1768328889532,0.00016014,93637.0,93626.0,0.070686]
[1768328889736,0.00016014,93637.0,93626.0,0.056686]
[1768328890039,0.00016014,93637.0,93626.0,0.15018484]
[1768328890433,0.00016014,93637.0,93626.0,0.16087084]
[1768328890734,0.00016014,93637.0,93628.0,0.010685]
[1768328891033,0.00016014,93637.0,93628.0,0.056686]
[1768328892639,0.010683,93647.0,93633.0,0.010685]
[1768328892841,0.0962,93646.0,93633.0,0.15018484]
[1768328893032,0.09487006,93643.0,93633.0,0.15018484]
[1768328893340,0.09487006,93643.0,93633.0,0.056686]
[1768328893846,0.0962,93646.0,93634.0,0.09349884]
[1768328894038,0.0962,93646.0,93634.0,0.15018484]
[1768328894334,0.09487006,93650.0,93634.0,0.15018484]
[1768328894541,0.010683,93647.0,93634.0,0.15018484]
[1768328895938,0.09487006,93644.0,93634.0,0.056686]
[1768328896346,0.09487006,93644.0,93634.0,0.050887]
[1768328896546,0.09487006,93644.0,93634.0,0.02]
[1768328897336,0.09487006,93644.0,93626.0,0.09131981]
[1768328897537,0.19236543,93636.0,93614.0,0.09013301]
[1768328897833,0.18768274,93640.0,93614.0,0.09013301]
[1768328897834,0.09749537,93631.0,93614.0,0.02]
[1768328898044,0.09487006,93624.0,93614.0,0.05]
[1768328898241,0.010686,93623.0,93614.0,0.05]
[1768328898542,0.010688,93608.0,93595.0,0.09013301]
[1768328898752,0.09487006,93610.0,93598.0,0.0962]
[1768328899043,0.19236543,93610.0,93598.0,0.05]
[1768328899431,0.0962,93613.0,93598.0,0.05]
[1768328899632,0.09487006,93610.0,93598.0,0.05]
[1768328899842,7.7e-07,93609.0,93605.0,0.010688]
[1768328900040,0.0962,93613.0,93605.0,0.070688]
[1768328900244,0.28517811,93630.0,93608.0,0.010688]
[1768328900542,0.09749537,93627.0,93608.0,0.06]
[1768328900739,0.08762155,93628.0,93611.0,0.09231981]
[1768328900944,0.0962,93627.0,93611.0,0.15231981]
[1768328901142,0.010686,93626.0,93611.0,0.06]
[1768328901347,0.09487006,93621.0,93611.0,0.06]
[1768328905043,0.00016014,93628.0,93611.0,0.15231981]
[1768328905349,0.29549537,93639.0,93623.0,0.010686]
[1768328905547,0.0962,93638.0,93623.0,0.060686]
[1768328905749,0.0962,93638.0,93623.0,0.05]
[1768328906352,0.18180629,93638.0,93623.0,0.05]
[1768328906651,0.010684,93637.0,93623.0,0.05]
[1768328906853,0.0962,93636.0,93623.0,0.05]
[1768328907046,0.08560629,93638.0,93623.0,0.05]
[1768328907241,0.29549537,93639.0,93623.0,0.05]
[1768328907242,0.0962,93637.0,93623.0,0.05]
[1768328907442,0.106884,93637.0,93623.0,0.05]
[1768328908146,0.0962,93637.0,93623.0,0.05]
[1768328909144,0.198,93639.0,93627.0,0.010686]
[1768328909344,0.198,93640.0,93627.0,0.020686]
[1768328909756,0.198,93640.0,93627.0,0.01]
[1768328910454,0.198,93640.0,93628.0,0.010685]
[1768328910645,0.198,93640.0,93628.0,0.070685]
[1768328912853,0.198,93640.0,93628.0,0.047685]
[1768328913055,0.37992229,93642.0,93628.0,0.047685]
[1768328913456,0.39060629,93642.0,93628.0,0.047685]
[1768328913641,0.304884,93642.0,93628.0,0.047685]
[1768328913957,0.2942,93642.0,93628.0,0.05837]
[1768328914657,0.198,93642.0,93631.0,0.010685]
[1768328914956,0.198,93642.0,93631.0,0.070685]
[1768328915348,0.27719277,93641.0,93631.0,0.007805]
[1768328915550,0.09077534,93640.0,93631.0,0.00748472]
[1768328917247,0.198,93642.0,93631.0,0.00748472]
[1768328917871,0.208684,93642.0,93631.0,0.00748472]
[1768328918457,0.09487006,93641.0,93631.0,0.00748472]
[1768328919449,0.09077534,93641.0,93631.0,0.00748472]
[1768328920247,0.10145934,93641.0,93631.0,0.00748472]
[1768328920450,0.09077534,93641.0,93631.0,0.00748472]
[1768328920649,0.09077534,93640.0,93631.0,0.06]
[1768328921058,0.010685,93634.0,93631.0,0.045643]
[1768328921243,0.09077534,93629.0,93614.0,0.0962]
[1768328921448,0.09077534,93628.0,93614.0,0.1462]
[1768328921647,0.09077534,93627.0,93614.0,0.1462]
[1768328921859,0.09077534,93627.0,93614.0,0.05]
[1768328922057,0.09077534,93625.0,93614.0,0.05]
[1768328922355,0.09077534,93617.0,93614.0,0.039179]
[1768328922559,0.10146234,93616.0,93599.0,0.0962]
[1768328922763,0.10146234,93616.0,93602.0,0.010688]
[1768328922764,0.09077534,93616.0,93602.0,0.010688]
[1768328922960,0.09077534,93616.0,93602.0,0.070688]
[1768328923152,0.09077534,93616.0,93602.0,0.06]
[1768328924250,0.09077534,93616.0,93602.0,0.070688]
[1768328925368,0.09077534,93616.0,93602.0,0.06]
[1768328925863,0.09077534,93615.0,93602.0,0.06]
[1768328926866,0.09077534,93615.0,93613.0,0.00163614]
[1768328927162,0.09077534,93615.0,93613.0,0.00686614]
[1768328927362,0.09077534,93615.0,93613.0,1.4e-07]
[1768328927761,0.09077534,93614.0,93613.0,1.4e-07]
[1768328928064,0.09077534,93614.0,93599.0,0.0962]
[1768328928265,0.09077534,93613.0,93599.0,0.1462]
[1768328929151,0.09077534,93613.0,93599.0,0.1282]
[1768328929671,0.09154737,93616.0,93599.0,0.1282]
[1768328929855,0.18232271,93616.0,93599.0,0.1282]
[1768328930166,0.09077534,93615.0,93599.0,0.1282]
[1768328930469,0.09077534,93615.0,93600.0,0.010689]
[1768328930661,0.09077534,93615.0,93600.0,0.060689]
[1768328931167,0.0962,93617.0,93604.0,0.09453836]
[1768328931363,0.0962,93617.0,93604.0,0.14453836]
[1768328933962,0.0962,93617.0,93604.0,0.05]
[1768328934264,0.09077534,93615.0,93604.0,0.05]
[1768328935058,0.09154737,93614.0,93604.0,0.05]
[1768328935358,0.09077534,93613.0,93604.0,0.05]
[1768328936859,0.09077534,93616.0,93604.0,0.033]
[1768328937672,0.09077534,93630.0,93606.0,0.09453836]
[1768328937855,0.09077534,93626.0,93606.0,0.06]
[1768328938061,0.09154737,93625.0,93606.0,0.059909]
[1768328938261,0.09077534,93624.0,93606.0,0.059909]
[1768328938664,0.09077534,93624.0,93606.0,0.070597]
[1768328939061,0.09077534,93624.0,93606.0,0.059909]
[1768328939267,0.09077534,93620.0,93606.0,0.059909]
[1768328940271,0.09077534,93620.0,93608.0,0.010688]
[1768328940471,1e-06,93633.0,93617.0,0.18564743]
[1768328940663,0.0962,93644.0,93624.0,0.10522436]
[1768328940864,0.0962,93644.0,93626.0,0.010686]
[1768328941062,0.0962,93644.0,93626.0,0.060686]
[1768328941276,0.0962,93644.0,93626.0,0.05]
[1768328941469,0.09077534,93643.0,93626.0,0.05]
[1768328941971,0.18774737,93644.0,93629.0,0.010685]
[1768328941972,0.0962,93644.0,93629.0,0.010685]
[1768328942173,0.0962,93644.0,93629.0,0.070685]
[1768328942373,0.0962,93644.0,93629.0,0.06]
[1768328942879,0.0962,93644.0,93630.0,0.010685]
[1768328943070,0.18232271,93638.0,93618.0,0.106886]
[1768328943372,0.09077534,93634.0,93627.0,0.00016023]
[1768328943568,0.09077534,93634.0,93618.0,0.1462]
[1768328943569,0.09077534,93632.0,93610.0,0.18730907]
[1768328943758,0.09077534,93632.0,93615.0,0.010687]
[1768328943961,0.09077534,93632.0,93615.0,0.070687]
[1768328944574,0.09077534,93632.0,93615.0,0.044687]
[1768328944973,0.09077534,93632.0,93615.0,0.055374]
[1768328945472,0.00016023,93637.0,93616.0,0.09109592]
[1768328945670,0.00016023,93637.0,93616.0,0.14109592]
[1768328945971,0.00016023,93637.0,93620.0,0.010686]
[1768328946171,0.1000538,93637.0,93620.0,0.060686]
[1768328947774,0.1000538,93637.0,93622.0,0.010686]
[1768328948074,0.1000538,93637.0,93624.0,0.010686]
[1768328948374,0.00016023,93637.0,93624.0,0.070686]
[1768328948675,0.00016023,93637.0,93624.0,0.06]
[1768328949176,0.1000538,93637.0,93624.0,0.06]
[1768328949373,0.00016023,93637.0,93624.0,0.15109592]
[1768328949677,0.09989357,93636.0,93624.0,0.06]
[1768328950269,0.09989357,93633.0,93624.0,0.06]
[1768328951671,0.09989357,93630.0,93614.0,0.010687]
[1768328951873,0.09989357,93630.0,93614.0,0.060687]
[1768328952171,0.09989357,93630.0,93614.0,0.05]
[1768328952377,0.09989357,93635.0,93617.0,0.010687]
[1768328952577,0.09989357,93635.0,93617.0,0.070687]
[1768328952769,0.09989357,93635.0,93617.0,0.06]
[1768328953370,0.00016023,93637.0,93618.0,0.10178292]
[1768328953676,0.1000538,93637.0,93618.0,0.070687]
[1768328954068,0.1000538,93637.0,93618.0,0.16178292]
[1768328954268,0.1000538,93637.0,93619.0,0.09109592]
[1768328954482,0.1000538,93637.0,93619.0,0.06]
[1768328954779,0.1000538,93637.0,93620.0,0.010686]
[1768328955078,0.1000538,93637.0,93620.0,0.070686]
[1768328955578,0.1000538,93637.0,93620.0,0.06]
[1768328955872,0.09874425,93635.0,93620.0,0.06]
[1768328956070,0.09324161,93633.0,93620.0,0.06]
[1768328956272,0.09831174,93632.0,93620.0,0.06]
[1768328956478,0.09324161,93631.0,93620.0,0.06]
[1768328956665,0.09831174,93630.0,93620.0,0.06]
[1768328960178,0.09831174,93630.0,93620.0,0.048]
[1768328961977,0.09324161,93629.0,93620.0,0.01]
[1768328962185,0.09831174,93626.0,93620.0,0.06]
[1768328963077,0.19155335,93622.0,93602.0,0.010688]
[1768328963279,0.09831174,93619.0,93602.0,0.05]
[1768328963480,0.09831174,93618.0,93602.0,0.05]
[1768328964082,0.09831174,93618.0,93603.0,0.010688]
[1768328964285,0.09831174,93616.0,93603.0,0.05]
[1768328965777,0.19451174,93622.0,93603.0,0.05]
[1768328965980,0.0962,93622.0,93606.0,0.09614373]
[1768328966174,0.09831174,93628.0,93608.0,0.10683173]
[1768328966484,0.0962,93627.0,93609.0,0.09614373]
[1768328966784,0.0962,93627.0,93611.0,0.010687]
[1768328967099,0.0962,93627.0,93611.0,0.070687]
[1768328967682,0.0962,93627.0,93611.0,0.046687]
[1768328968477,0.0962,93627.0,93611.0,0.057374]
[1768328969689,0.0962,93627.0,93611.0,0.046687]
[1768328969891,0.09831174,93625.0,93611.0,0.046687]
[1768328970894,0.09831174,93625.0,93612.0,0.010687]
[1768328971083,0.09831174,93625.0,93612.0,0.057374]
[1768328972592,0.0962,93627.0,93616.0,0.010687]
[1768328972800,0.0962,93627.0,93616.0,0.070687]
[1768328972990,0.09831174,93632.0,93616.0,0.070687]
[1768328972991,0.09831174,93632.0,93618.0,0.010686]
[1768328973292,0.0962,93631.0,93618.0,0.070686]
[1768328974791,0.0962,93632.0,93618.0,0.070686]
[1768328975385,0.0962,93632.0,93618.0,0.040686]
[1768328976195,0.00534,93633.0,93619.0,0.09699718]
[1768328976494,0.00534,93633.0,93623.0,0.010686]
[1768328976688,0.09165205,93625.0,93604.0,0.09]
[1768328976991,0.09165205,93621.0,93604.0,0.490688]
[1768328977905,0.09165205,93621.0,93606.0,0.010688]
[1768328978194,0.09165205,93625.0,93606.0,0.070688]
[1768328978591,0.09165205,93625.0,93606.0,0.06]
[1768328978793,0.0962,93626.0,93607.0,0.09699718]
[1768328978999,0.0962,93626.0,93607.0,0.15699718]
[1768328979295,0.0962,93626.0,93610.0,0.09504196]
[1768328979491,0.0962,93626.0,93610.0,0.06]
[1768328979692,0.0962,93626.0,93610.0,0.070687]
[1768328979897,0.0962,93626.0,93612.0,0.010687]
[1768328980194,0.0962,93626.0,93612.0,0.060687]
[1768328980395,0.0962,93626.0,93612.0,0.05]
[1768328981393,0.010686,93625.0,93612.0,0.05]
[1768328982108,0.010686,93623.0,93612.0,0.05]
[1768328983101,0.010686,93623.0,93612.0,0.028]
[1768328983401,0.18785205,93626.0,93612.0,0.028]
[1768328983599,0.18785205,93626.0,93612.0,0.038687]
[1768328983801,0.18785205,93626.0,93614.0,0.010687]
[1768328984099,0.18785205,93626.0,93614.0,0.060687]
[1768328985601,0.0962,93626.0,93614.0,0.060687]
[1768328986007,0.0962,93626.0,93614.0,0.05]
[1768328987400,0.09961081,93637.0,93619.0,0.010686]
[1768328987604,0.0962,93632.0,93620.0,0.09504196]
[1768328987792,0.0962,93632.0,93621.0,0.010686]
[1768328987991,0.0962,93632.0,93622.0,0.010686]
[1768328988195,0.0962,93632.0,93622.0,0.06]
[1768328988803,0.0962,93631.0,93623.0,0.010686]
[1768328989102,0.0962,93631.0,93623.0,0.070686]
[1768328989599,0.0962,93637.0,93625.0,0.010686]
[1768328989802,0.0962,93637.0,93625.0,0.06]
[1768328990892,0.0962,93637.0,93625.0,0.05]
[1768328993904,0.0962,93637.0,93626.0,0.010686]
[1768328994203,0.09504196,93640.0,93626.0,0.060686]
[1768328994393,0.0962,93638.0,93626.0,0.060686]
[1768328995294,0.09945058,93642.0,93626.0,0.05]
[1768328995599,0.05,98826.0,93633.0,0.0907791]
[1768328995600,0.09945058,93656.0,93633.0,0.0907791]
[1768328995806,0.09504196,93650.0,93633.0,0.05]
[1768328995999,0.09504196,93650.0,93636.0,0.010684]
[1768328996200,0.09504196,93650.0,93636.0,0.070684]
[1768328996599,0.09504196,93650.0,93638.0,0.010684]
[1768328996806,0.09504196,93650.0,93638.0,0.070684]
[1768328997501,0.0962,93651.0,93638.0,0.06]
[1768328998614,0.0962,93651.0,93639.0,0.010684]
[1768328998902,0.0962,93651.0,93639.0,0.060684]
[1768328999306,0.0962,93651.0,93639.0,0.05]
[1768328999907,0.18785205,93651.0,93639.0,0.05]
[1768329000096,0.09504196,93650.0,93639.0,0.05]
[1768329000493,0.09165205,93649.0,93639.0,0.05]
[1768329000708,0.0962,93651.0,93642.0,0.010684]
[1768329000906,0.0593398,93660.0,93642.0,0.14699718]
[1768329001103,0.09165205,93662.0,93643.0,0.09699718]
[1768329001408,0.0962,93664.0,93655.0,0.010682]
[1768329001606,0.08342329,93671.0,93657.0,0.010682]
[1768329001811,0.08342329,93671.0,93660.0,0.010682]
[1768329002107,0.08342329,93671.0,93660.0,0.05]
[1768329002308,0.09504196,93670.0,93660.0,0.05]
[1768329004210,0.09165205,93664.0,93639.0,0.18777628]
[1768329004403,0.14729052,93659.0,93646.0,0.05]
[1768329004900,0.09504196,93656.0,93646.0,0.05]
[1768329005101,0.14798431,93649.0,93631.0,0.0962]
[1768329005302,0.09504196,93656.0,93631.0,0.0962]
[1768329005303,0.010684,93638.0,93631.0,0.1562]
[1768329005504,0.010684,93637.0,93631.0,0.05]
[1768329005713,0.09504196,93641.0,93631.0,0.05]
[1768329005912,0.010684,93640.0,93631.0,0.05]
[1768329006114,0.15197587,93641.0,93627.0,0.00016014]
[1768329006313,0.010685,93633.0,93627.0,0.05]
[1768329006505,0.05693377,93637.0,93613.0,0.20343428]
[1768329006706,0.010685,93636.0,93616.0,0.010687]
[1768329006904,0.05693377,93637.0,93616.0,0.46]
[1768329007109,0.0910504,93639.0,93623.0,0.010686]
[1768329007414,0.0910504,93639.0,93623.0,0.070686]
[1768329007617,0.0962,93638.0,93632.0,0.010685]
[1768329007805,0.00016014,93644.0,93632.0,0.06]
[1768329008005,0.14720553,93641.0,93632.0,0.06]
[1768329008202,0.0962,93643.0,93617.0,0.010687]
[1768329008203,0.010685,93635.0,93617.0,0.010687]
[1768329008403,0.010684,93638.0,93619.0,0.010686]
[1768329008603,0.010684,93638.0,93619.0,0.070686]
[1768329009405,0.010685,93635.0,93619.0,0.06]
[1768329009805,0.05441924,93634.0,93619.0,0.06]
[1768329010117,0.1017344,93642.0,93623.0,0.010686]
[1768329010311,0.1017344,93642.0,93623.0,0.060686]
[1768329010511,0.1017344,93642.0,93625.0,0.010686]
[1768329010812,0.010684,93639.0,93625.0,0.05]
[1768329011206,0.08608969,93642.0,93629.0,0.010685]
[1768329011412,0.0962,93643.0,93629.0,0.070685]
[1768329011714,0.010684,93642.0,93629.0,0.06]
[1768329014113,0.010684,93640.0,93629.0,0.06]
[1768329014510,0.010684,93638.0,93629.0,0.06]
[1768329014720,0.010684,93638.0,93629.0,0.035]
[1768329015019,0.010684,93639.0,93629.0,0.035]
[1768329015316,0.010684,93637.0,93629.0,0.035]
[1768329015714,0.0551178,93642.0,93629.0,0.035]
[1768329015916,0.00534,93633.0,93629.0,0.035]
[1768329016914,0.0962,93640.0,93634.0,0.010685]
[1768329017113,0.0962,93640.0,93634.0,0.050685]
[1768329017316,0.010685,93635.0,93620.0,0.010686]
[1768329017512,0.010684,93638.0,93624.0,0.010686]
[1768329017710,0.15232878,93640.0,93624.0,0.06]
[1768329017908,0.0962,93640.0,93624.0,0.06]
[1768329018111,0.0962,93640.0,93542.0,1.06425126]
[1768329018112,0.010686,93625.0,93610.0,0.010687]
[1768329018309,0.010687,93617.0,93604.0,0.09548373]
[1768329018508,0.010687,93617.0,93604.0,0.06]
[1768329018717,0.00408678,93610.0,93587.0,0.09888029]
[1768329019016,0.23764588,93610.0,93593.0,0.06534228]
[1768329019216,0.09511719,93610.0,93596.0,0.010689]
[1768329019416,0.0962,93616.0,93601.0,0.010688]
[1768329019613,0.0962,93616.0,93601.0,0.070688]
[1768329019814,0.00016023,93620.0,93602.0,0.09888029]
[1768329020016,0.0962,93619.0,93606.0,0.09548373]
[1768329020222,0.0962,93619.0,93606.0,0.15548373]
[1768329020520,0.0962,93619.0,93609.0,0.010687]
[1768329020721,0.0962,93619.0,93609.0,0.070687]
[1768329021428,0.00016023,93620.0,93609.0,0.070687]
[1768329022325,0.00016023,93620.0,93609.0,0.055687]
[1768329023522,0.00016023,93620.0,93609.0,0.066374]
[1768329026925,0.00894129,93637.0,93612.0,0.19436402]
[1768329027131,0.24250039,93630.0,93612.0,0.06]
[1768329027330,0.09505908,93622.0,93612.0,0.06]
[1768329028130,0.09505908,93622.0,93613.0,0.00534114]
[1768329028329,2.3e-07,93626.0,93624.0,0.010686]
[1768329028515,0.09505908,93634.0,93616.0,0.09548373]
[1768329028828,0.09505908,93626.0,93616.0,0.06]
[1768329029215,0.09505908,93626.0,93613.0,0.00534114]
[1768329029417,0.09505908,93626.0,93567.0,0.053464]
[1768329029418,0.10095983,93609.0,93586.0,0.09548373]
[1768329029620,0.09505908,93603.0,93593.0,0.05534228]
[1768329029822,0.106888,93608.0,93594.0,0.010689]
[1768329030023,0.0962,93608.0,93594.0,0.039689]
[1768329030734,0.0962,93608.0,93599.0,0.09548373]
[1768329031031,0.0962,93607.0,93599.0,0.11548373]
[1768329031728,0.00016023,93610.0,93599.0,0.030689]
[1768329032035,0.0962,93609.0,93599.0,0.02]
[1768329032926,0.010688,93606.0,93599.0,0.02]
[1768329033122,0.010688,93604.0,93599.0,0.02]
[1768329033321,0.09103041,93603.0,93589.0,0.01069]
[1768329033532,0.0962,93602.0,93589.0,0.07064403]
[1768329033722,0.0962,93602.0,93589.0,0.06]
[1768329034329,0.09505908,93600.0,93589.0,0.06]
[1768329034523,0.09505908,93600.0,93590.0,0.01069]
[1768329034832,0.09505908,93600.0,93590.0,0.07069]
[1768329035333,0.10574808,93600.0,93590.0,0.06]
[1768329035638,0.09505908,93600.0,93590.0,0.06]
[1768329035823,0.00016023,93610.0,93594.0,0.0993858]
[1768329036028,0.0962,93609.0,93594.0,0.070689]
[1768329036228,0.0962,93609.0,93594.0,0.06]
[1768329036730,0.0962,93609.0,93595.0,0.010689]
[1768329036937,0.0962,93609.0,93595.0,0.06]
[1768329037725,0.00016023,93610.0,93595.0,0.050689]
[1768329037938,0.91824,93608.0,93595.0,0.050689]
[1768329039638,0.010688,93607.0,93595.0,0.050689]
[1768329040138,0.91824,93608.0,93595.0,0.050689]
[1768329040331,0.928928,93608.0,93595.0,0.050689]
[1768329040536,0.010688,93606.0,93595.0,0.050689]
[1768329040739,0.09257546,93601.0,93586.0,0.00016023]
[1768329041037,0.91824,93608.0,93586.0,0.02016023]
[1768329041038,0.18763454,93600.0,93586.0,0.02016023]
[1768329041234,0.09505908,93600.0,93586.0,0.02016023]
[1768329041440,0.010688,93602.0,93586.0,0.02016023]
[1768329042338,0.91824,93608.0,93587.0,0.19015223]
[1768329042539,0.91824,93608.0,93587.0,0.25015223]
[1768329042742,0.09257546,93613.0,93588.0,0.19015223]
[1768329042947,0.91828,93607.0,93588.0,0.25015223]
[1768329043528,0.010688,93604.0,93588.0,0.1700758]
[1768329044034,0.91828,93607.0,93588.0,0.1593858]
[1768329044233,0.91828,93607.0,93588.0,0.06]
[1768329044829,0.010688,93603.0,93588.0,0.06]
[1768329045033,0.91828,93607.0,93588.0,0.06]
[1768329045343,1.01085546,93607.0,93588.0,0.06]
[1768329045533,1.01085546,93607.0,93588.0,0.057]
[1768329045732,0.010688,93604.0,93589.0,0.01069]